fUST/lending_fUST_20250128
["ID","MTS","AMOUNT","RATE_DAILY","PERIOD"]
[350636863,1738009832095,-6406.44,0.00018688,2]
[350636864,1738009832104,-500.0,0.00018688,2]
[350636865,1738009832114,-834.97,0.00018688,2]
[350636866,1738009832124,-500.0,0.00018689,2]
[350636867,1738009832134,-500.0,0.00018825,2]
[350636868,1738009832144,-597.45,0.00018825,2]
[350636869,1738009832153,-1497.03,0.00018825,2]
[350636870,1738009832163,-6406.44,0.00018825,2]
[350636871,1738009832172,-500.0,0.00018825,2]
[350636872,1738009832187,-834.97,0.00018825,2]
[350636874,1738009832196,-1574.9439992,0.00018826,2]
[350636876,1738009832205,-500.0,0.00018826,2]
[350636877,1738009832215,-500.0,0.00018826,2]
[350636878,1738009832224,-500.0,0.00018826,2]
[350636879,1738009832233,-150.0,0.000189,2]
[350636880,1738009832243,-500.0,0.00018962,2]
[350636881,1738009832252,-834.38,0.00018962,2]
[350636882,1738009832262,-500.0,0.00018962,2]
[350636883,1738009832271,-625.18,0.00018962,2]
[350636884,1738009832280,-840.48,0.00018962,2]
[350636885,1738009832290,-608.96,0.00018962,2]
[350636886,1738009832299,-500.0,0.00018962,2]
[350636887,1738009832309,-500.0,0.00018962,2]
[350636888,1738009832318,-500.0,0.00018962,2]
[350636889,1738009832327,-500.0,0.00018962,2]
[350636890,1738009832336,-500.0,0.00018962,2]
[350636891,1738009832345,-500.0,0.00018962,2]
[350636892,1738009832355,-597.45,0.00018962,2]
[350636893,1738009832364,-938.84932831,0.00018962,2]
[350636894,1738009832376,-558.18067169,0.00018962,2]
[350636895,1738009832386,-517.11235085,0.00018962,2]
[350636896,1738009832397,-2417.439763,0.00018962,2]
[350636897,1738009832408,-2600.0,0.00018962,2]
[350636898,1738009832420,-871.88788615,0.00018962,2]
[350636899,1738009832432,-500.0,0.00018962,2]
[350636900,1738009832441,-834.97,0.00018962,2]
[350636901,1738009832451,-500.0,0.00018963,2]
[350636902,1738009832460,-2690.36,0.00018963,2]
[350636903,1738009832470,-500.0,0.00018963,2]
[350636904,1738009832479,-500.0,0.00018963,2]
[350636905,1738009832489,-500.0,0.00018963,2]
[350636906,1738009832499,-157.45,0.00018963,2]
[350636907,1738009832509,-500.0,0.00019099,2]
[350636908,1738009832518,-834.38,0.00019099,2]
[350636909,1738009832528,-500.0,0.00019099,2]
[350636910,1738009832537,-625.18,0.00019099,2]
[350636911,1738009832547,-840.48,0.00019099,2]
[350636912,1738009832556,-608.96,0.00019099,2]
[350636913,1738009832565,-500.0,0.00019099,2]
[350636914,1738009832575,-500.0,0.00019099,2]
[350636915,1738009832584,-500.0,0.00019099,2]
[350636916,1738009832593,-500.0,0.00019099,2]
[350636917,1738009832603,-500.0,0.00019099,2]
[350636918,1738009832612,-500.0,0.00019099,2]
[350636919,1738009832621,-597.45,0.00019099,2]
[350636920,1738009832631,-1497.03,0.00019099,2]
[350636921,1738009832640,-6406.44,0.00019099,2]
[350636922,1738009832650,-500.0,0.00019099,2]
[350636923,1738009832659,-834.97,0.00019099,2]
[350636924,1738009832669,-500.0,0.000191,2]
[350636925,1738009832680,-1956.32552757,0.000191,2]
[350636926,1738009832692,-734.03447243,0.000191,2]
[350636927,1738009832702,-500.0,0.000191,2]
[350636928,1738009832711,-500.0,0.000191,2]
[350636929,1738009832721,-500.0,0.000191,2]
[350636930,1738009832731,-500.0,0.00019236,2]
[350636931,1738009832740,-834.38,0.00019236,2]
[350636932,1738009832749,-500.0,0.00019236,2]
[350636933,1738009832759,-215.04781803,0.00019236,2]
[350636949,1738009837837,-500.0,0.00018551,2]
[350636950,1738009837847,-500.0,0.00018551,2]
[350636951,1738009837857,-500.0,0.00018552,2]
[350636952,1738009837867,-500.0,0.00018688,2]
[350636953,1738009837879,-271.88553258,0.00018689,2]
[350636954,1738009838114,-228.11446742,0.00018689,2]
[350636956,1738009838123,-500.0,0.00018825,2]
[350636958,1738009838133,-576.86,0.00018826,2]
[350636960,1738009838142,-500.0,0.00018962,2]
[350636962,1738009838151,-500.0,0.00019099,2]
[350636963,1738009838161,-410.13218197,0.00019236,2]
[350636964,1738009838171,-840.48,0.00019236,2]
[350636965,1738009838180,-608.96,0.00019236,2]
[350636966,1738009838189,-137.16386161,0.00019236,2]
[350636967,1738009838201,-362.83613839,0.00019236,2]
[350636968,1738009838210,-500.0,0.00019236,2]
[350636969,1738009838219,-500.0,0.00019236,2]
[350636970,1738009838229,-500.0,0.00019236,2]
[350636971,1738009838238,-500.0,0.00019236,2]
[350636972,1738009838248,-500.0,0.00019236,2]
[350636973,1738009838258,-597.45,0.00019236,2]
[350636974,1738009838267,-66.89183832,0.00019236,2]
[350636989,1738009839989,-662.36464445,0.00019236,2]
[350636990,1738009840046,-767.77351723,0.00019236,2]
[350636991,1738009840056,-6406.44,0.00019236,2]
[350636992,1738009840066,-500.0,0.00019236,2]
[350636993,1738009840077,-834.97,0.00019236,2]
[350636994,1738009840087,-179.54084202,0.00019236,2]
[350636995,1738009840096,-249.5362997,0.00019236,2]
[350636996,1738009840105,-30.21888798,0.00019236,2]
[350636997,1738009840117,-469.78111202,0.00019236,2]
[350636998,1738009840127,-500.0,0.00019237,2]
[350636999,1738009840137,-2690.36,0.00019237,2]
[350637000,1738009840147,-500.0,0.00019237,2]
[350637001,1738009840157,-500.0,0.00019237,2]
[350637002,1738009840167,-83.01566109,0.00019237,2]
[350637006,1738009842973,-500.0,0.00018551,2]
[350637007,1738009842982,-500.0,0.00018688,2]
[350637008,1738009842991,-398.805238,0.00019237,2]
[350637009,1738009843003,-18.17910091,0.00019237,2]
[350637010,1738009843012,-834.38,0.00019373,2]
[350637011,1738009843021,-500.0,0.00019373,2]
[350637012,1738009843030,-625.18,0.00019373,2]
[350637013,1738009843039,-840.48,0.00019373,2]
[350637014,1738009843047,-462.39007915,0.00019373,2]
[350637015,1738009843058,-146.56992085,0.00019373,2]
[350637016,1738009843068,-129.37938058,0.00019373,2]
[350637017,1738009843085,-172.25061942,0.00019373,2]
[350637018,1738009843094,-500.0,0.00019373,2]
[350637019,1738009843103,-500.0,0.00019373,2]
[350637020,1738009843112,-500.0,0.00019373,2]
[350637021,1738009843122,-500.0,0.00019373,2]
[350637022,1738009843130,-500.0,0.00019373,2]
[350637023,1738009843139,-597.45,0.00019373,2]
[350637024,1738009843148,-1497.03,0.00019373,2]
[350637025,1738009843157,-6406.44,0.00019373,2]
[350637026,1738009843167,-500.0,0.00019373,2]
[350637027,1738009843175,-834.97,0.00019373,2]
[350637028,1738009843186,-500.0,0.00019373,2]
[350637029,1738009843195,-500.0,0.00019374,2]
[350637030,1738009843204,-2690.36,0.00019374,2]
[350637031,1738009843213,-500.0,0.00019374,2]
[350637032,1738009843222,-500.0,0.00019374,2]
[350637033,1738009843232,-500.0,0.00019374,2]
[350637034,1738009843241,-179.59627756,0.000195,2]
[350637035,1738009843250,-834.38,0.0001951,2]
[350637036,1738009843259,-500.0,0.0001951,2]
[350637037,1738009843268,-625.18,0.0001951,2]
[350637038,1738009843278,-840.48,0.0001951,2]
[350637039,1738009843287,-608.96,0.0001951,2]
[350637040,1738009843296,-500.0,0.0001951,2]
[350637041,1738009843305,-500.0,0.0001951,2]
[350637042,1738009843314,-500.0,0.0001951,2]
[350637043,1738009843323,-500.0,0.0001951,2]
[350637044,1738009843332,-500.0,0.0001951,2]
[350637045,1738009843340,-597.45,0.0001951,2]
[350637046,1738009843350,-1497.03,0.0001951,2]
[350637047,1738009843359,-6406.44,0.0001951,2]
[350637048,1738009843369,-500.0,0.0001951,2]
[350637049,1738009843378,-834.97,0.0001951,2]
[350637050,1738009843387,-500.0,0.0001951,2]
[350637051,1738009843397,-500.0,0.00019511,2]
[350637052,1738009843406,-2690.36,0.00019511,2]
[350637053,1738009843416,-500.0,0.00019511,2]
[350637054,1738009843426,-500.0,0.00019511,2]
[350637055,1738009843437,-500.0,0.00019511,2]
[350637056,1738009843447,-500.0,0.00019517,2]
[350637057,1738009843456,-500.0,0.00019517,2]
[350637058,1738009843466,-500.0,0.00019517,2]
[350637059,1738009843475,-500.0,0.00019517,2]
[350637060,1738009843486,-150.79286508,0.00019517,2]
[350637061,1738009843495,-500.0,0.00019517,2]
[350637062,1738009843504,-500.0,0.00019517,2]
[350637063,1738009843513,-500.0,0.00019517,2]
[350637064,1738009843523,-333.33531365,0.00019517,2]
[350637065,1738009843532,-500.0,0.00019517,2]
[350637066,1738009843540,-500.0,0.00019517,2]
[350637067,1738009843549,-500.0,0.00019517,2]
[350637068,1738009843558,-500.0,0.00019517,2]
[350637069,1738009843567,-500.0,0.00019517,2]
[350637070,1738009843576,-501.99234675,0.00019517,2]
[350637071,1738009843585,-504.02913143,0.00019517,2]
[350637072,1738009843595,-502.46819966,0.00019517,2]
[350637073,1738009843604,-500.0,0.00019517,2]
[350637074,1738009843613,-192.42485986,0.00019517,2]
[350637075,1738009843622,-500.0,0.00019517,2]
[350637076,1738009843631,-533.80964002,0.00019517,2]
[350637077,1738009843640,-500.0,0.00019517,2]
[350637078,1738009843649,-500.0,0.00019517,2]
[350637079,1738009843658,-500.0,0.00019517,2]
[350637080,1738009843667,-97.35493927,0.00019517,2]
[350637095,1738009845837,-402.64506073,0.00019517,2]
[350637096,1738009845847,-104.44980347,0.00019517,2]
[350637097,1738009845894,-395.55019653,0.00019517,2]
[350637098,1738009845904,-500.0,0.00019517,2]
[350637099,1738009845914,-500.0,0.00019517,2]
[350637100,1738009845924,-500.0,0.00019517,2]
[350637101,1738009845933,-500.0,0.00019517,2]
[350637102,1738009845946,-501.0516362,0.00019517,2]
[350637103,1738009845958,-500.0,0.00019517,2]
[350637104,1738009845968,-500.0,0.00019517,2]
[350637105,1738009845977,-500.0,0.00019517,2]
[350637106,1738009845987,-500.0,0.00019517,2]
[350637107,1738009845996,-500.0,0.00019517,2]
[350637108,1738009846006,-500.0,0.00019517,2]
[350637109,1738009846015,-379.39816727,0.00019517,2]
[350637110,1738009846027,-120.60183273,0.00019517,2]
[350637111,1738009846036,-156.68132443,0.00019517,2]
[350637112,1738009846047,-348.27887512,0.00019517,2]
[350637113,1738009846056,-283.38112493,0.00019517,2]
[350637116,1738010834142,-300.0,0.00017574,2]
[350637117,1738010834164,-2268.80329258,0.00017575,2]
[350637118,1738010840094,-2449.88184505,0.00017575,2]
[350637119,1738010847136,-9350.28520743,0.00017575,2]
[350637120,1738010965187,-5000.0,0.00017225,2]
[350637121,1738010965208,-455.21979321,0.00017399,2]
[350637122,1738010965229,-3142.62696324,0.00017575,2]
[350637123,1738010965253,-607.55561955,0.00017718,3]
[350637124,1738010965274,-300.0,0.00017816,2]
[350637125,1738010965297,-224.19,0.00017817,2]
[350637126,1738010965320,-500.0,0.00017817,2]
[350637127,1738010965342,-500.0,0.00017954,2]
[350637128,1738010965363,-500.0,0.00018091,2]
[350637129,1738010965385,-500.0,0.00018228,2]
[350637130,1738010965410,-500.0,0.00018365,2]
[350637131,1738010965431,-179.59627756,0.00018451,2]
[350637132,1738010965454,-500.0,0.00018502,2]
[350637133,1738010965474,-500.0,0.0001855,2]
[350637134,1738010965495,-500.0,0.0001855,2]
[350637135,1738010965519,-500.0,0.0001855,2]
[350637136,1738010965538,-497.71122502,0.0001855,2]
[350637137,1738010965560,-500.92207891,0.0001855,2]
[350637138,1738010965582,-500.0,0.0001855,2]
[350637139,1738010965606,-500.0,0.0001855,2]
[350637140,1738010965627,-631.40741804,0.0001855,2]
[350637141,1738010965651,-649.72,0.0001855,2]
[350637142,1738010965680,-500.0,0.0001855,2]
[350637143,1738010965703,-610.56,0.0001855,2]
[350637144,1738010965724,-500.0,0.0001855,2]
[350637145,1738010965747,-500.0,0.0001855,2]
[350637146,1738010965768,-500.0,0.0001855,2]
[350637147,1738010965791,-500.0,0.0001855,2]
[350637148,1738010965813,-626.89,0.0001855,2]
[350637149,1738010965834,-618.46449649,0.0001855,2]
[350637150,1738010965855,-500.0,0.0001855,2]
[350637151,1738010965878,-500.0,0.0001855,2]
[350637152,1738010965901,-500.0,0.0001855,2]
[350637153,1738010965927,-500.0,0.0001855,2]
[350637154,1738010965950,-500.0,0.0001855,2]
[350637155,1738010965973,-500.0,0.0001855,2]
[350637156,1738010965996,-500.0,0.0001855,2]
[350637157,1738010966018,-410.61387151,0.0001855,2]
[350637158,1738010966040,-500.0,0.0001855,2]
[350637159,1738010966062,-500.0,0.0001855,2]
[350637160,1738010966082,-500.0,0.00018551,2]
[350637161,1738010966104,-500.0,0.00018551,2]
[350637162,1738010966126,-514.38189878,0.00018551,2]
[350637163,1738010966148,-500.0,0.00018551,2]
[350637164,1738010966171,-500.0,0.00018551,2]
[350637165,1738010966192,-500.0,0.00018551,2]
[350637166,1738010966214,-500.0,0.00018551,2]
[350637167,1738010966240,-1172.39,0.00018551,2]
[350637168,1738010966268,-552.12,0.00018551,2]
[350637169,1738010966291,-4918.78,0.00018551,2]
[350637170,1738010966313,-500.0,0.00018551,2]
[350637171,1738010966336,-500.0,0.00018551,2]
[350637172,1738010966359,-2009.45,0.00018551,2]
[350637173,1738010966380,-500.0,0.00018551,2]
[350637174,1738010966402,-500.0,0.00018551,2]
[350637175,1738010966426,-500.0,0.00018551,2]
[350637176,1738010966447,-329.98,0.00018551,2]
[350637177,1738010966467,-500.0,0.00018551,2]
[350637178,1738010966489,-500.0,0.00018551,2]
[350637179,1738010966511,-500.0,0.00018551,2]
[350637180,1738010966534,-500.0,0.00018551,2]
[350637181,1738010966555,-500.0,0.00018552,2]
[350637182,1738010966575,-422.91801308,0.00018552,2]
[350637183,1738010966596,-500.0,0.00018552,2]
[350637184,1738010966617,-500.0,0.00018552,2]
[350637185,1738010966638,-500.0,0.00018552,2]
[350637186,1738010966661,-500.0,0.00018552,2]
[350637187,1738010966682,-500.0,0.00018552,2]
[350637188,1738010966703,-500.0,0.00018552,2]
[350637189,1738010966723,-266.40006304,0.00018552,2]
[350637190,1738010966744,-535.08743479,0.00018552,2]
[350637191,1738010966765,-500.0,0.00018552,2]
[350637192,1738010966787,-501.41594376,0.00018552,2]
[350637193,1738010966808,-617.99320134,0.00018552,2]
[350637194,1738010966830,-500.0,0.00018552,2]
[350637195,1738010966851,-162.25477041,0.00018552,2]
[350637196,1738010966871,-501.27189013,0.00018552,2]
[350637197,1738010966892,-501.67607826,0.00018552,2]
[350637198,1738010966919,-500.0,0.00018552,2]
[350637199,1738010966941,-500.0,0.00018552,2]
[350637200,1738010966962,-157.45,0.000186,2]
[350637201,1738010966987,-500.0,0.00018639,2]
[350637202,1738010967010,-170.709,0.00018647,2]
[350637203,1738010967180,-500.0,0.00018686,2]
[350637204,1738010967205,-500.0,0.00018687,2]
[350637205,1738010967228,-500.0,0.00018687,2]
[350637206,1738010967255,-649.72,0.00018687,2]
[350637207,1738010967279,-500.0,0.00018687,2]
[350637208,1738010967302,-610.56,0.00018687,2]
[350637209,1738010967324,-500.0,0.00018687,2]
[350637210,1738010967346,-500.0,0.00018687,2]
[350637211,1738010967367,-500.0,0.00018687,2]
[350637212,1738010967390,-500.0,0.00018687,2]
[350637213,1738010967415,-626.89,0.00018687,2]
[350637214,1738010967436,-500.0,0.00018687,2]
[350637215,1738010967459,-500.0,0.00018687,2]
[350637216,1738010967482,-500.0,0.00018687,2]
[350637217,1738010967504,-500.0,0.00018687,2]
[350637218,1738010967525,-500.0,0.00018687,2]
[350637219,1738010967547,-500.0,0.00018687,2]
[350637220,1738010967567,-500.0,0.00018687,2]
[350637221,1738010967590,-500.0,0.00018687,2]
[350637222,1738010967611,-174.25753945,0.00018688,2]
[350637223,1738010967632,-500.0,0.00018688,2]
[350637224,1738010967654,-500.0,0.00018688,2]
[350637225,1738010967678,-500.0,0.00018688,2]
[350637226,1738010967700,-500.0,0.00018688,2]
[350637227,1738010967723,-500.0,0.00018688,2]
[350637228,1738010967748,-1172.39,0.00018688,2]
[350637229,1738010967772,-4918.78,0.00018688,2]
[350637230,1738010967795,-500.0,0.00018688,2]
[350637231,1738010967819,-2009.45,0.00018688,2]
[350637232,1738010967842,-500.0,0.00018688,2]
[350637233,1738010967869,-500.0,0.00018688,2]
[350637234,1738010967892,-343.4804882,0.00018688,2]
[350637235,1738010967918,-334.52662965,0.00018688,2]
[350637236,1738010967940,-500.0,0.00018688,2]
[350637237,1738010967963,-500.0,0.00018688,2]
[350637238,1738010967987,-500.0,0.00018688,2]
[350637239,1738010968011,-500.0,0.00018776,2]
[350637240,1738010968033,-598.80939347,0.00018824,2]
[350637241,1738010968055,-216.61887507,0.00018824,2]
[350637242,1738010968076,-500.0,0.00018824,2]
[350637243,1738010968099,-500.0,0.00018824,2]
[350637244,1738010968120,-500.0,0.00018824,2]
[350637245,1738010968143,-362.32955373,0.00018824,2]
[350637246,1738010968168,-500.0,0.00018824,2]
[350637247,1738010968190,-500.0,0.00018824,2]
[350637248,1738010968212,-500.0,0.00018824,2]
[350637249,1738010968234,-500.0,0.00018824,2]
[350637250,1738010968257,-500.0,0.00018824,2]
[350637251,1738010968281,-500.0,0.00018824,2]
[350637252,1738010968301,-590.152033,0.00018824,2]
[350637253,1738010968322,-500.0,0.00018824,2]
[350637254,1738010968343,-500.0,0.00018824,2]
[350637255,1738010968363,-500.0,0.00018824,2]
[350637256,1738010968384,-500.0,0.00018824,2]
[350637257,1738010968404,-500.0,0.00018824,2]
[350637258,1738010968428,-500.0,0.00018824,2]
[350637259,1738010968450,-500.0,0.00018824,2]
[350637260,1738010968470,-500.0,0.00018824,2]
[350637261,1738010968494,-500.0,0.00018824,2]
[350637262,1738010968514,-434.17084414,0.00018824,2]
[350637263,1738010968537,-500.0,0.00018824,2]
[350637264,1738010968558,-500.0,0.00018824,2]
[350637265,1738010968581,-649.72,0.00018824,2]
[350637266,1738010968604,-500.0,0.00018824,2]
[350637267,1738010968628,-610.56,0.00018824,2]
[350637268,1738010968651,-500.0,0.00018824,2]
[350637269,1738010968677,-500.0,0.00018824,2]
[350637270,1738010968699,-156.9,0.00018824,2]
[350637271,1738010968723,-500.0,0.00018824,2]
[350637272,1738010968747,-626.89,0.00018824,2]
[350637273,1738010968771,-500.0,0.00018824,2]
[350637274,1738010968794,-500.0,0.00018824,2]
[350637275,1738010968817,-584.68,0.00018824,2]
[350637276,1738010968840,-500.0,0.00018824,2]
[350637277,1738010968860,-500.0,0.00018825,2]
[350637278,1738010968882,-500.0,0.00018825,2]
[350637279,1738010968904,-500.0,0.00018825,2]
[350637280,1738010968931,-1172.39,0.00018825,2]
[350637281,1738010968955,-4918.78,0.00018825,2]
[350637282,1738010968977,-500.0,0.00018825,2]
[350637283,1738010969002,-900.73551405,0.00018825,2]
[350637326,1738011032114,-500.0,0.00017817,2]
[350637329,1738011032125,-500.0,0.00017817,2]
[350637331,1738011032136,-500.0,0.00017954,2]
[350637333,1738011032146,-500.0,0.00017954,2]
[350637335,1738011032157,-500.0,0.00018091,2]
[350637337,1738011032168,-414.14,0.00018091,2]
[350637339,1738011032179,-500.0,0.00018228,2]
[350637342,1738011032189,-500.0,0.00018365,2]
[350637344,1738011032200,-500.0,0.00018502,2]
[350637346,1738011032212,-568.5,0.00018549,2]
[350637348,1738011032223,-1025.85,0.0001855,2]
[350637350,1738011032233,-2064.73427573,0.0001855,2]
[350637353,1738011032246,-731.7805,0.0001855,2]
[350637781,1738011042361,-440.0144746,0.00017817,2]
[350637820,1738011043023,-59.9855254,0.00017817,2]
[350637821,1738011043033,-1507.41522427,0.0001855,2]
[350637822,1738011043044,-500.0,0.0001855,2]
[350637823,1738011043053,-500.0,0.00018551,2]
[350637824,1738011043063,-860.53918886,0.00018637,2]
[350637825,1738011043073,-500.0,0.00018639,2]
[350637826,1738011043083,-568.5,0.00018686,2]
[350637827,1738011043093,-1025.85,0.00018687,2]
[350637828,1738011043102,-4303.93,0.00018687,2]
[350637829,1738011043113,-500.0,0.00018687,2]
[350637830,1738011043123,-500.0,0.00018688,2]
[350637831,1738011043133,-500.0,0.00018776,2]
[350637832,1738011043143,-568.5,0.00018823,2]
[350637833,1738011043153,-1025.85,0.00018824,2]
[350637834,1738011043162,-2221.24528617,0.00018824,2]
[350637835,1738011043174,-328.89492814,0.00018824,2]
[350637836,1738011043186,-1753.78978569,0.00018824,2]
[350637837,1738011043195,-500.0,0.00018824,2]
[350637838,1738011043204,-1108.71448595,0.00018825,2]
[350637839,1738011043213,-500.0,0.00018825,2]
[350637841,1738011043227,-500.0,0.00018825,2]
[350637842,1738011043236,-500.0,0.00018825,2]
[350637843,1738011043246,-180.81588462,0.00018861,2]
[350637844,1738011043255,-179.59627756,0.00018861,2]
[350637845,1738011043270,-500.0,0.00018913,2]
[350637846,1738011043279,-500.0,0.00018913,2]
[350637847,1738011043289,-568.5,0.0001896,2]
[350637848,1738011043299,-500.0,0.00018961,2]
[350637849,1738011043309,-500.0,0.00018961,2]
[350637850,1738011043319,-500.0,0.00018961,2]
[350637851,1738011043328,-500.0,0.00018961,2]
[350637852,1738011043339,-500.0,0.00018961,2]
[350637853,1738011043349,-350.77053526,0.00018961,2]
[350637854,1738011043359,-610.56,0.00018961,2]
[350637855,1738011043368,-500.0,0.00018961,2]
[350637856,1738011043378,-500.0,0.00018961,2]
[350637857,1738011043387,-626.89,0.00018961,2]
[350637858,1738011043396,-500.0,0.00018961,2]
[350637859,1738011043406,-500.0,0.00018961,2]
[350637860,1738011043415,-500.0,0.00018961,2]
[350637861,1738011043424,-1025.85,0.00018961,2]
[350637862,1738011043434,-4303.93,0.00018961,2]
[350637863,1738011043443,-196.75,0.00018961,2]
[350637864,1738011043453,-500.0,0.00018962,2]
[350637865,1738011043462,-2009.45,0.00018962,2]
[350637866,1738011043473,-500.0,0.00018962,2]
[350637867,1738011043483,-500.0,0.00018962,2]
[350637868,1738011043492,-500.0,0.00018962,2]
[350637869,1738011043501,-500.0,0.0001905,2]
[350637870,1738011043511,-500.0,0.0001905,2]
[350637871,1738011043520,-568.5,0.00019097,2]
[350637872,1738011043529,-500.0,0.00019098,2]
[350637873,1738011043539,-500.0,0.00019098,2]
[350637874,1738011043548,-500.0,0.00019098,2]
[350637875,1738011043558,-500.0,0.00019098,2]
[350637876,1738011043567,-610.56,0.00019098,2]
[350637877,1738011043577,-500.0,0.00019098,2]
[350637878,1738011043586,-500.0,0.00019098,2]
[350637879,1738011043595,-626.89,0.00019098,2]
[350637880,1738011043604,-500.0,0.00019098,2]
[350637881,1738011043614,-500.0,0.00019098,2]
[350637882,1738011043624,-500.0,0.00019098,2]
[350637883,1738011043633,-1025.85,0.00019098,2]
[350637884,1738011043643,-4303.93,0.00019098,2]
[350637885,1738011043652,-500.0,0.00019099,2]
[350637886,1738011043662,-2009.45,0.00019099,2]
[350637887,1738011043672,-450.33,0.00019099,2]
[350637888,1738011043681,-500.0,0.00019099,2]
[350637889,1738011043691,-500.0,0.00019099,2]
[350637890,1738011043701,-160.345554,0.00019178,2]
[350637891,1738011043710,-500.0,0.00019187,2]
[350637892,1738011043720,-500.0,0.00019187,2]
[350637893,1738011043730,-568.5,0.00019234,2]
[350637894,1738011043740,-500.0,0.00019235,2]
[350637895,1738011043749,-500.0,0.00019235,2]
[350637896,1738011043759,-610.56,0.00019235,2]
[350637897,1738011043768,-500.0,0.00019235,2]
[350637898,1738011043778,-500.0,0.00019235,2]
[350637899,1738011043787,-626.89,0.00019235,2]
[350637900,1738011043797,-500.0,0.00019235,2]
[350637901,1738011043806,-508.2,0.00019235,2]
[350637902,1738011043816,-500.0,0.00019235,2]
[350637903,1738011043825,-1025.85,0.00019235,2]
[350637904,1738011043835,-3438.52747692,0.00019235,2]
[350637916,1738011046101,-500.0,0.00018549,2]
[350637917,1738011046111,-865.40252308,0.00019235,2]
[350637918,1738011046120,-388.92217199,0.00019236,2]
[350637919,1738011046130,-598.71020103,0.00019236,2]
[350637924,1738011047631,-1410.73979897,0.00019236,2]
[350637925,1738011047641,-500.0,0.00019236,2]
[350637926,1738011047650,-399.28426903,0.00019236,2]
[350637928,1738012036113,-4125.20174288,0.00016276,2]
[350637929,1738012036136,-1910.42572681,0.0001644,2]
[350637930,1738012036163,-300.0,0.00016872,2]
[350637931,1738012036185,-500.0,0.00016873,2]
[350637932,1738012036205,-500.0,0.00016873,2]
[350637933,1738012036229,-386.06858417,0.00016873,2]
[350637934,1738012038135,-113.93141583,0.00016873,2]
[350637935,1738012038160,-500.0,0.00016873,2]
[350637936,1738012038186,-500.0,0.00016873,2]
[350637937,1738012038208,-500.0,0.00016873,2]
[350637938,1738012038236,-422.86961568,0.00016873,2]
[350637939,1738012045174,-77.13038432,0.00016873,2]
[350637940,1738012045195,-500.0,0.00016873,2]
[350637941,1738012045219,-500.0,0.00016873,2]
[350637942,1738012045241,-473.80835089,0.00016873,2]
[350637943,1738012048095,-26.19164911,0.00016873,2]
[350637944,1738012048118,-500.0,0.00016873,2]
[350637945,1738012048140,-14.13079169,0.00016873,2]
[350637946,1738012145118,-300.0,0.00016872,2]
[350637947,1738012145138,-173.94642025,0.00016873,2]
[350637948,1738012145158,-500.0,0.00016873,2]
[350637949,1738012145180,-500.0,0.00016873,2]
[350637950,1738012145201,-823.16,0.00016873,2]
[350637951,1738012145223,-522.18,0.00016873,2]
[350637952,1738012145243,-351.65239499,0.00016873,2]
[350637953,1738012145263,-500.0,0.00016873,2]
[350637954,1738012145283,-500.0,0.00016873,2]
[350637955,1738012145305,-500.0,0.00016873,2]